[Event "Titled Tuesday Blitz July 6 2021"]
[White "Dang, Hoang Son"]
[Black "Travadon, Loic"]
[WhiteFideId "12402435"]
[BlackFideId "26092131"]
[WhiteElo "2248"]
[BlackElo "2095"]
[Result "0-1"]
[Round "03"]
[TimeControl "180+1"]
[Date "2021.07.06"]
[WhiteClock "0:00:02"]
[BlackClock "0:01:02"]

1. d4 {[%clk 0:03:00]}  Nf6 {[%clk 0:02:59]} 2. c4 {[%clk 0:03:01]}  g6 {[%clk 0:03:00]} 3. Nf3 {[%clk 0:03:02]}  Bg7 {[%clk 0:03:00]} 4. g3 {[%clk 0:03:03]}  O-O {[%clk 0:03:01]} 5. Bg2 {[%clk 0:03:04]}  c5 {[%clk 0:03:01]} 6. O-O {[%clk 0:03:05]}  cxd4 {[%clk 0:03:01]} 7. Nxd4 {[%clk 0:03:05]}  d5 {[%clk 0:03:00]} 8. cxd5 {[%clk 0:03:05]}  Nxd5 {[%clk 0:03:01]} 9. Nb5 {[%clk 0:03:06]}  a6 {[%clk 0:02:57]} 10. N5c3 {[%clk 0:02:51]}  Nxc3 {[%clk 0:02:53]} 11. Nxc3 {[%clk 0:02:50]}  Nc6 {[%clk 0:02:52]} 12. Qa4 {[%clk 0:02:48]}  Bd7 {[%clk 0:02:47]} 13. Rd1 {[%clk 0:02:48]}  Nd4 {[%clk 0:02:41]} 14. Qc4 {[%clk 0:02:24]}  Bb5 {[%clk 0:02:28]} 15. Nxb5 {[%clk 0:02:00]}  Nf3+ {[%clk 0:02:28]} 16. Bxf3 {[%clk 0:02:01]}  Qxd1+ {[%clk 0:02:27]} 17. Kg2 {[%clk 0:02:01]}  axb5 {[%clk 0:02:28]} 18. Qxb5 {[%clk 0:02:02]}  Rac8 {[%clk 0:02:26]} 19. e3 {[%clk 0:01:57]}  Qe1 {[%clk 0:02:21]} 20. Qf1 {[%clk 0:01:35]}  Qxf1+ {[%clk 0:02:21]} 21. Kxf1 {[%clk 0:01:36]}  Rc2 {[%clk 0:02:20]} 22. Be4 {[%clk 0:01:34]}  Bxb2 {[%clk 0:02:17]} 23. Bxb2 {[%clk 0:01:23]}  Rxb2 {[%clk 0:02:17]} 24. a4 {[%clk 0:01:23]}  Rd8 {[%clk 0:02:14]} 25. a5 {[%clk 0:01:02]}  Rdd2 {[%clk 0:02:12]} 26. Kg1 {[%clk 0:01:03]}  Rxf2 {[%clk 0:02:11]} 27. Bxb7 {[%clk 0:01:03]}  Rxh2 {[%clk 0:01:55]} 28. a6 {[%clk 0:00:58]}  Ra2 {[%clk 0:01:55]} 29. Rc1 {[%clk 0:00:52]}  Kg7 {[%clk 0:01:53]} 30. Bd5 {[%clk 0:00:49]}  e6 {[%clk 0:01:47]} 31. Bxa2 {[%clk 0:00:45]}  Rxa2 {[%clk 0:01:48]} 32. Rc6 {[%clk 0:00:44]}  h6 {[%clk 0:01:46]} 33. Kf1 {[%clk 0:00:42]}  e5 {[%clk 0:01:46]} 34. Ke1 {[%clk 0:00:42]}  h5 {[%clk 0:01:46]} 35. Kd1 {[%clk 0:00:41]}  g5 {[%clk 0:01:46]} 36. Kc1 {[%clk 0:00:42]}  f6 {[%clk 0:01:42]} 37. Kb1 {[%clk 0:00:40]}  Ra5 {[%clk 0:01:42]} 38. Kb2 {[%clk 0:00:40]}  h4 {[%clk 0:01:42]} 39. gxh4 {[%clk 0:00:40]}  gxh4 {[%clk 0:01:43]} 40. Kb3 {[%clk 0:00:40]}  h3 {[%clk 0:01:44]} 41. Kb4 {[%clk 0:00:41]}  Ra1 {[%clk 0:01:42]} 42. Rc2 {[%clk 0:00:27]}  Rxa6 {[%clk 0:01:41]} 43. Rh2 {[%clk 0:00:28]}  Kg6 {[%clk 0:01:38]} 44. Rxh3 {[%clk 0:00:29]}  Kf5 {[%clk 0:01:39]} 45. Rh4 {[%clk 0:00:26]}  Rc6 {[%clk 0:01:37]} 46. Kb5 {[%clk 0:00:24]}  Rc3 {[%clk 0:01:36]} 47. e4+ {[%clk 0:00:24]}  Kg5 {[%clk 0:01:37]} 48. Rh1 {[%clk 0:00:22]}  Re3 {[%clk 0:01:36]} 49. Rg1+ {[%clk 0:00:23]}  Kh5 {[%clk 0:01:35]} 50. Rh1+ {[%clk 0:00:23]}  Kg4 {[%clk 0:01:34]} 51. Rg1+ {[%clk 0:00:24]}  Rg3 {[%clk 0:01:34]} 52. Rf1 {[%clk 0:00:23]}  Rf3 {[%clk 0:01:34]} 53. Re1 {[%clk 0:00:23]}  Kf4 {[%clk 0:01:34]} 54. Kc5 {[%clk 0:00:24]}  Re3 {[%clk 0:01:29]} 55. Rf1+ {[%clk 0:00:24]}  Kxe4 {[%clk 0:01:29]} 56. Rxf6 {[%clk 0:00:24]}  Rd3 {[%clk 0:01:29]} 57. Kc4 {[%clk 0:00:24]}  Rd8 {[%clk 0:01:29]} 58. Kc3 {[%clk 0:00:24]}  Ke3 {[%clk 0:01:28]} 59. Kc2 {[%clk 0:00:24]}  e4 {[%clk 0:01:28]} 60. Rh6 {[%clk 0:00:24]}  Kf4 {[%clk 0:01:25]} 61. Rh4+ {[%clk 0:00:24]}  Kf3 {[%clk 0:01:25]} 62. Rh3+ {[%clk 0:00:24]}  Kg4 {[%clk 0:01:25]} 63. Rh7 {[%clk 0:00:20]}  e3 {[%clk 0:01:24]} 64. Rg7+ {[%clk 0:00:20]}  Kf4 {[%clk 0:01:24]} 65. Rf7+ {[%clk 0:00:20]}  Kg3 {[%clk 0:01:24]} 66. Rg7+ {[%clk 0:00:20]}  Kf3 {[%clk 0:01:24]} 67. Rf7+ {[%clk 0:00:20]}  Ke2 {[%clk 0:01:24]} 68. Re7 {[%clk 0:00:20]}  Kf2 {[%clk 0:01:24]} 69. Rf7+ {[%clk 0:00:21]}  Ke1 {[%clk 0:01:24]} 70. Re7 {[%clk 0:00:20]}  e2 {[%clk 0:01:24]} 71. Rf7 {[%clk 0:00:20]}  Rd6 {[%clk 0:01:23]} 72. Rf5 {[%clk 0:00:19]}  Rc6+ {[%clk 0:01:22]} 73. Kb2 {[%clk 0:00:15]}  Rc4 {[%clk 0:01:22]} 74. Kb3 {[%clk 0:00:09]}  Rd4 {[%clk 0:01:19]} 75. Kc2 {[%clk 0:00:08]}  Rc4+ {[%clk 0:01:18]} 76. Kd3 {[%clk 0:00:08]}  Rc8 {[%clk 0:01:18]} 77. Ra5 {[%clk 0:00:07]}  Rd8+ {[%clk 0:01:14]} 78. Ke3 {[%clk 0:00:05]}  Re8+ {[%clk 0:01:10]} 79. Kd3 {[%clk 0:00:06]}  Kf2 {[%clk 0:01:04]} 80. Rf5+ {[%clk 0:00:05]}  Kg3 {[%clk 0:01:03]} 81. Rg5+ {[%clk 0:00:02]}  Kf4 {[%clk 0:01:02]} 82. Rg1 {[%clk 0:00:02]}  e1=Q {[%clk 0:01:02]} 0-1


[Site "https://www.chess.com"]

[Event "Titled Tuesday Blitz July 6 2021"]
[White "Dardha, Daniel"]
[Black "Hamley, Ryan"]
[WhiteFideId "240990"]
[BlackFideId "30959497"]
[WhiteElo "2489"]
[BlackElo "2445"]
[Result "0-1"]
[Round "03"]
[TimeControl "180+1"]
[Date "2021.07.06"]
[WhiteClock "0:00:02"]
[BlackClock "0:00:02"]

1. Na3 {[%clk 0:03:00]}  d5 {[%clk 0:02:58]} 2. c4 {[%clk 0:02:58]}  e6 {[%clk 0:02:53]} 3. Nf3 {[%clk 0:02:49]}  Nf6 {[%clk 0:02:48]} 4. g3 {[%clk 0:02:46]}  c5 {[%clk 0:02:44]} 5. Bg2 {[%clk 0:02:45]}  Nc6 {[%clk 0:02:43]} 6. O-O {[%clk 0:02:44]}  Be7 {[%clk 0:02:40]} 7. b3 {[%clk 0:02:39]}  O-O {[%clk 0:02:37]} 8. Bb2 {[%clk 0:02:38]}  d4 {[%clk 0:02:37]} 9. e3 {[%clk 0:02:38]}  Re8 {[%clk 0:02:30]} 10. exd4 {[%clk 0:02:37]}  cxd4 {[%clk 0:02:30]} 11. d3 {[%clk 0:02:38]}  e5 {[%clk 0:02:25]} 12. Nd2 {[%clk 0:02:32]}  Bf5 {[%clk 0:02:22]} 13. Nf3 {[%clk 0:02:13]}  h6 {[%clk 0:01:57]} 14. Nc2 {[%clk 0:02:08]}  a5 {[%clk 0:01:55]} 15. a3 {[%clk 0:02:07]}  Qb6 {[%clk 0:01:53]} 16. Nh4 {[%clk 0:01:55]}  Bh7 {[%clk 0:01:48]} 17. Ne1 {[%clk 0:01:53]}  Nd7 {[%clk 0:01:43]} 18. Bd5 {[%clk 0:01:35]}  Bxh4 {[%clk 0:01:32]} 19. gxh4 {[%clk 0:01:36]}  Ne7 {[%clk 0:01:32]} 20. Bg2 {[%clk 0:01:28]}  Nc5 {[%clk 0:01:30]} 21. b4 {[%clk 0:01:21]}  axb4 {[%clk 0:01:27]} 22. axb4 {[%clk 0:01:22]}  Qxb4 {[%clk 0:01:27]} 23. Rb1 {[%clk 0:01:17]}  Qa4 {[%clk 0:01:17]} 24. Qe2 {[%clk 0:01:13]}  Ng6 {[%clk 0:01:11]} 25. Bc1 {[%clk 0:01:08]}  Nxh4 {[%clk 0:01:09]} 26. Bd5 {[%clk 0:01:07]}  Qd7 {[%clk 0:01:05]} 27. Rb5 {[%clk 0:00:56]}  Qd6 {[%clk 0:00:37]} 28. Qg4 {[%clk 0:00:39]}  Ng6 {[%clk 0:00:31]} 29. Ng2 {[%clk 0:00:35]}  Ra1 {[%clk 0:00:26]} 30. h4 {[%clk 0:00:16]}  Ne7 {[%clk 0:00:13]} 31. Rxc5 {[%clk 0:00:11]}  Qxc5 {[%clk 0:00:10]} 32. Bxh6 {[%clk 0:00:11]}  Rxf1+ {[%clk 0:00:09]} 33. Kxf1 {[%clk 0:00:12]}  g6 {[%clk 0:00:04]} 34. Qd7 {[%clk 0:00:09]}  Ra8 {[%clk 0:00:02]} 35. Kg1 {[%clk 0:00:05]}  Nxd5 {[%clk 0:00:02]} 36. cxd5 {[%clk 0:00:05]}  Qc8 {[%clk 0:00:02]} 37. Qe7 {[%clk 0:00:02]}  Qd8 {[%clk 0:00:02]} 0-1


[Site "https://www.chess.com"]

[Event "Titled Tuesday Blitz July 6 2021"]
[White "De Silva, L M S T"]
[Black "Bluebaum, Matthias"]
[WhiteFideId "9953698"]
[BlackFideId "24651516"]
[WhiteElo "1621"]
[BlackElo "2685"]
[Result "0-1"]
[Round "03"]
[TimeControl "180+1"]
[Date "2021.07.06"]
[WhiteClock "0:00:15"]
[BlackClock "0:01:34"]

1. Nf3 {[%clk 0:03:00]}  d5 {[%clk 0:02:59]} 2. b3 {[%clk 0:03:01]}  Bg4 {[%clk 0:02:58]} 3. Bb2 {[%clk 0:03:02]}  Nd7 {[%clk 0:02:58]} 4. d4 {[%clk 0:03:00]}  Ngf6 {[%clk 0:02:58]} 5. e3 {[%clk 0:03:00]}  e6 {[%clk 0:02:59]} 6. Be2 {[%clk 0:03:00]}  Bd6 {[%clk 0:02:59]} 7. O-O {[%clk 0:03:01]}  O-O {[%clk 0:03:00]} 8. c4 {[%clk 0:03:01]}  c6 {[%clk 0:02:59]} 9. Nc3 {[%clk 0:03:01]}  Qe7 {[%clk 0:02:58]} 10. h3 {[%clk 0:03:01]}  Bh5 {[%clk 0:02:57]} 11. Nd2 {[%clk 0:02:58]}  Bg6 {[%clk 0:02:55]} 12. f4 {[%clk 0:02:51]}  Bb4 {[%clk 0:02:52]} 13. Bf3 {[%clk 0:02:48]}  b5 {[%clk 0:02:43]} 14. c5 {[%clk 0:02:42]}  Nxc5 {[%clk 0:02:25]} 15. dxc5 {[%clk 0:02:40]}  Qxc5 {[%clk 0:02:26]} 16. Qc1 {[%clk 0:02:05]}  Qxe3+ {[%clk 0:02:24]} 17. Kh1 {[%clk 0:02:05]}  d4 {[%clk 0:02:21]} 18. Ncb1 {[%clk 0:01:43]}  Rac8 {[%clk 0:02:20]} 19. a3 {[%clk 0:01:40]}  Bd6 {[%clk 0:02:19]} 20. g3 {[%clk 0:01:33]}  c5 {[%clk 0:02:05]} 21. Qe1 {[%clk 0:01:20]}  Qd3 {[%clk 0:01:56]} 22. Qe2 {[%clk 0:01:15]}  Qc2 {[%clk 0:01:51]} 23. Ra2 {[%clk 0:00:31]}  Bd3 {[%clk 0:01:50]} 24. Qd1 {[%clk 0:00:31]}  Qxd1 {[%clk 0:01:44]} 25. Rxd1 {[%clk 0:00:32]}  e5 {[%clk 0:01:43]} 26. fxe5 {[%clk 0:00:32]}  Bxe5 {[%clk 0:01:44]} 27. b4 {[%clk 0:00:32]}  c4 {[%clk 0:01:44]} 28. Nf1 {[%clk 0:00:26]}  Rfd8 {[%clk 0:01:39]} 29. Ba1 {[%clk 0:00:26]}  Be4 {[%clk 0:01:36]} 30. Bxe4 {[%clk 0:00:24]}  Nxe4 {[%clk 0:01:37]} 31. Re2 {[%clk 0:00:24]}  f5 {[%clk 0:01:34]} 32. Nbd2 {[%clk 0:00:22]}  d3 {[%clk 0:01:34]} 33. Rxe4 {[%clk 0:00:19]}  Bxa1 {[%clk 0:01:32]} 34. Re7 {[%clk 0:00:16]}  Bf6 {[%clk 0:01:32]} 35. Rxa7 {[%clk 0:00:15]}  c3 {[%clk 0:01:33]} 36. Nf3 {[%clk 0:00:15]}  c2 {[%clk 0:01:34]} 37. Rc1 {[%clk 0:00:15]}  Bb2 {[%clk 0:01:34]} 0-1


[Site "https://www.chess.com"]

[Event "Titled Tuesday Blitz July 6 2021"]
[White "Deepan Chakkravarthy J."]
[Black "Reprintsev, Alexander"]
[WhiteFideId "5011132"]
[BlackFideId "14100541"]
[WhiteElo "2490"]
[BlackElo "2126"]
[Result "1-0"]
[Round "03"]
[TimeControl "180+1"]
[Date "2021.07.06"]
[WhiteClock "0:00:19"]
[BlackClock "0:00:05"]

1. Nf3 {[%clk 0:03:00]}  Nc6 {[%clk 0:02:57]} 2. d4 {[%clk 0:02:59]}  d5 {[%clk 0:02:57]} 3. c4 {[%clk 0:02:58]}  e5 {[%clk 0:02:56]} 4. dxe5 {[%clk 0:02:53]}  d4 {[%clk 0:02:56]} 5. Bf4 {[%clk 0:02:51]}  Nge7 {[%clk 0:02:53]} 6. g3 {[%clk 0:02:44]}  Ng6 {[%clk 0:02:53]} 7. Bg2 {[%clk 0:02:44]}  Bg4 {[%clk 0:02:51]} 8. Nbd2 {[%clk 0:02:41]}  Qd7 {[%clk 0:02:51]} 9. h3 {[%clk 0:02:38]}  Bf5 {[%clk 0:02:44]} 10. Nb3 {[%clk 0:02:30]}  f6 {[%clk 0:02:43]} 11. Nfxd4 {[%clk 0:02:26]}  Nxd4 {[%clk 0:02:35]} 12. Qxd4 {[%clk 0:02:25]}  Bb4+ {[%clk 0:02:26]} 13. Kf1 {[%clk 0:02:24]}  O-O-O {[%clk 0:02:04]} 14. Qxd7+ {[%clk 0:02:08]}  Rxd7 {[%clk 0:02:03]} 15. c5 {[%clk 0:01:37]}  fxe5 {[%clk 0:01:41]} 16. Be3 {[%clk 0:01:34]}  Be6 {[%clk 0:01:30]} 17. Be4 {[%clk 0:01:33]}  Ne7 {[%clk 0:01:21]} 18. Kg2 {[%clk 0:01:26]}  a5 {[%clk 0:01:08]} 19. a3 {[%clk 0:01:23]}  Bxb3 {[%clk 0:01:07]} 20. axb4 {[%clk 0:01:23]}  a4 {[%clk 0:01:07]} 21. Rhc1 {[%clk 0:01:09]}  c6 {[%clk 0:01:07]} 22. Bc2 {[%clk 0:01:05]}  Kc7 {[%clk 0:01:02]} 23. Bxb3 {[%clk 0:01:01]}  axb3 {[%clk 0:01:03]} 24. Ra3 {[%clk 0:01:00]}  Nf5 {[%clk 0:00:52]} 25. Rxb3 {[%clk 0:01:00]}  Ra8 {[%clk 0:00:51]} 26. Rc2 {[%clk 0:00:54]}  Ra2 {[%clk 0:00:47]} 27. g4 {[%clk 0:00:52]}  Nd4 {[%clk 0:00:43]} 28. Bxd4 {[%clk 0:00:52]}  Rxd4 {[%clk 0:00:44]} 29. b5 {[%clk 0:00:52]}  h5 {[%clk 0:00:41]} 30. gxh5 {[%clk 0:00:50]}  Rh4 {[%clk 0:00:36]} 31. bxc6 {[%clk 0:00:48]}  bxc6 {[%clk 0:00:36]} 32. Rg3 {[%clk 0:00:48]}  Kd7 {[%clk 0:00:31]} 33. Rd2+ {[%clk 0:00:47]}  Ke6 {[%clk 0:00:30]} 34. Rxg7 {[%clk 0:00:45]}  Rxh5 {[%clk 0:00:27]} 35. Rd6+ {[%clk 0:00:37]}  Kf5 {[%clk 0:00:27]} 36. Rf7+ {[%clk 0:00:33]}  Kg5 {[%clk 0:00:14]} 37. Rdf6 {[%clk 0:00:29]}  Rh8 {[%clk 0:00:10]} 38. Rf5+ {[%clk 0:00:27]}  Kg6 {[%clk 0:00:09]} 39. R7f6+ {[%clk 0:00:27]}  Kg7 {[%clk 0:00:10]} 40. Rxc6 {[%clk 0:00:27]}  Rxb2 {[%clk 0:00:10]} 41. Rxe5 {[%clk 0:00:27]}  Kf7 {[%clk 0:00:09]} 42. f3 {[%clk 0:00:27]}  Rg8+ {[%clk 0:00:09]} 43. Kf2 {[%clk 0:00:28]}  Rb1 {[%clk 0:00:09]} 44. h4 {[%clk 0:00:27]}  Rgg1 {[%clk 0:00:09]} 45. h5 {[%clk 0:00:27]}  Rgf1+ {[%clk 0:00:07]} 46. Ke3 {[%clk 0:00:27]}  Rh1 {[%clk 0:00:08]} 47. Rd5 {[%clk 0:00:26]}  Rb3+ {[%clk 0:00:08]} 48. Kf4 {[%clk 0:00:25]}  Ke7 {[%clk 0:00:07]} 49. e4 {[%clk 0:00:23]}  Rh3 {[%clk 0:00:05]} 50. Ke5 {[%clk 0:00:23]}  Rhxf3 {[%clk 0:00:05]} 51. Re6+ {[%clk 0:00:22]}  Kf7 {[%clk 0:00:05]} 52. Rd7+ {[%clk 0:00:22]}  Kf8 {[%clk 0:00:05]} 53. Rb6 {[%clk 0:00:22]}  Rxb6 {[%clk 0:00:03]} 54. cxb6 {[%clk 0:00:21]}  Rb3 {[%clk 0:00:04]} 55. b7 {[%clk 0:00:20]}  Ke8 {[%clk 0:00:05]} 56. Rh7 {[%clk 0:00:19]}  Kd8 {[%clk 0:00:05]} 57. Rh8+ {[%clk 0:00:19]} 1-0


[Site "https://www.chess.com"]

[Event "Titled Tuesday Blitz July 6 2021"]
[White "Dobrov, Vladimir"]
[Black "Pham, Le Thao Nguyen"]
[WhiteFideId "4136594"]
[BlackFideId "12401226"]
[WhiteElo "2614"]
[BlackElo "2286"]
[Result "0-1"]
[Round "03"]
[TimeControl "180+1"]
[Date "2021.07.06"]
[WhiteClock "0:00:07"]
[BlackClock "0:00:07"]

1. d4 {[%clk 0:03:00]}  Nf6 {[%clk 0:02:59]} 2. c4 {[%clk 0:02:59]}  c6 {[%clk 0:02:59]} 3. Nc3 {[%clk 0:02:58]}  d5 {[%clk 0:02:59]} 4. Nf3 {[%clk 0:02:58]}  dxc4 {[%clk 0:02:59]} 5. a4 {[%clk 0:02:59]}  Bf5 {[%clk 0:02:59]} 6. Nh4 {[%clk 0:02:59]}  Bg4 {[%clk 0:02:51]} 7. h3 {[%clk 0:02:59]}  Bh5 {[%clk 0:02:52]} 8. g4 {[%clk 0:02:59]}  Bg6 {[%clk 0:02:52]} 9. Nxg6 {[%clk 0:02:59]}  hxg6 {[%clk 0:02:53]} 10. e3 {[%clk 0:03:00]}  e6 {[%clk 0:02:37]} 11. Bxc4 {[%clk 0:02:58]}  a5 {[%clk 0:02:36]} 12. Bf1 {[%clk 0:02:54]}  Na6 {[%clk 0:02:32]} 13. Bg2 {[%clk 0:02:53]}  Nb4 {[%clk 0:02:32]} 14. O-O {[%clk 0:02:53]}  Bd6 {[%clk 0:02:30]} 15. f4 {[%clk 0:02:24]}  Nfd5 {[%clk 0:02:14]} 16. e4 {[%clk 0:02:22]}  Nb6 {[%clk 0:02:07]} 17. Qe2 {[%clk 0:01:31]}  O-O {[%clk 0:01:03]} 18. Be3 {[%clk 0:01:28]}  f5 {[%clk 0:00:52]} 19. gxf5 {[%clk 0:01:07]}  gxf5 {[%clk 0:00:47]} 20. Kh1 {[%clk 0:01:04]}  Qh4 {[%clk 0:00:42]} 21. d5 {[%clk 0:01:02]}  exd5 {[%clk 0:00:25]} 22. Bxb6 {[%clk 0:00:54]}  fxe4 {[%clk 0:00:25]} 23. Rad1 {[%clk 0:00:37]}  Bxf4 {[%clk 0:00:19]} 24. Bg1 {[%clk 0:00:31]}  Rae8 {[%clk 0:00:16]} 25. Qg4 {[%clk 0:00:26]}  Qxg4 {[%clk 0:00:15]} 26. hxg4 {[%clk 0:00:27]}  g5 {[%clk 0:00:16]} 27. Ne2 {[%clk 0:00:26]}  Nd3 {[%clk 0:00:15]} 28. b3 {[%clk 0:00:22]}  Rf7 {[%clk 0:00:15]} 29. Bb6 {[%clk 0:00:22]}  Rh7+ {[%clk 0:00:09]} 30. Kg1 {[%clk 0:00:22]}  Rh4 {[%clk 0:00:10]} 31. Nxf4 {[%clk 0:00:21]}  Nxf4 {[%clk 0:00:09]} 32. Kf2 {[%clk 0:00:16]}  Rxg4 {[%clk 0:00:10]} 33. Rg1 {[%clk 0:00:16]}  Rf8 {[%clk 0:00:07]} 34. Bc5 {[%clk 0:00:11]}  Rf7 {[%clk 0:00:08]} 35. Bxe4 {[%clk 0:00:07]}  Nh3+ {[%clk 0:00:06]} 36. Ke2 {[%clk 0:00:07]}  Nxg1+ {[%clk 0:00:06]} 37. Kd3 {[%clk 0:00:08]}  Rxe4 {[%clk 0:00:06]} 38. Rxg1 {[%clk 0:00:08]}  Rf3+ {[%clk 0:00:06]} 39. Kd2 {[%clk 0:00:08]}  g4 {[%clk 0:00:07]} 40. b4 {[%clk 0:00:07]}  axb4 {[%clk 0:00:07]} 41. Kc2 {[%clk 0:00:08]}  b3+ {[%clk 0:00:07]} 42. Kb2 {[%clk 0:00:08]}  Rxa4 {[%clk 0:00:07]} 43. Kb1 {[%clk 0:00:07]}  g3 {[%clk 0:00:07]} 44. Bd6 {[%clk 0:00:07]}  Rg4 {[%clk 0:00:07]} 45. Kb2 {[%clk 0:00:07]}  g2 {[%clk 0:00:07]} 46. Bc5 {[%clk 0:00:07]}  Rf1 {[%clk 0:00:07]} 0-1


[Site "https://www.chess.com"]

[Event "Titled Tuesday Blitz July 6 2021"]
[White "Erdogdu, Mert"]
[Black "Aldokhin, Ivan"]
[WhiteFideId "6301495"]
[BlackFideId "24115720"]
[WhiteElo "2485"]
[BlackElo "2306"]
[Result "1-0"]
[Round "03"]
[TimeControl "180+1"]
[Date "2021.07.06"]
[WhiteClock "0:00:30"]
[BlackClock "0:00:05"]

1. e4 {[%clk 0:03:00]}  c5 {[%clk 0:02:59]} 2. Nf3 {[%clk 0:03:00]}  e6 {[%clk 0:03:00]} 3. d4 {[%clk 0:03:01]}  cxd4 {[%clk 0:03:01]} 4. Nxd4 {[%clk 0:03:01]}  a6 {[%clk 0:03:01]} 5. c4 {[%clk 0:03:01]}  Qc7 {[%clk 0:03:01]} 6. Nc3 {[%clk 0:03:01]}  Nf6 {[%clk 0:03:01]} 7. a3 {[%clk 0:03:01]}  d6 {[%clk 0:02:57]} 8. Be2 {[%clk 0:03:00]}  Nbd7 {[%clk 0:02:58]} 9. Be3 {[%clk 0:03:00]}  Be7 {[%clk 0:02:59]} 10. O-O {[%clk 0:03:00]}  O-O {[%clk 0:02:59]} 11. Qd2 {[%clk 0:02:52]}  b6 {[%clk 0:02:59]} 12. Rfc1 {[%clk 0:02:52]}  Bb7 {[%clk 0:02:58]} 13. f3 {[%clk 0:02:52]}  Rac8 {[%clk 0:02:56]} 14. Rc2 {[%clk 0:02:52]}  Qb8 {[%clk 0:02:55]} 15. Rb1 {[%clk 0:02:53]}  Bd8 {[%clk 0:02:54]} 16. Kh1 {[%clk 0:02:53]}  Re8 {[%clk 0:02:52]} 17. b4 {[%clk 0:02:52]}  Bc7 {[%clk 0:02:34]} 18. Bg1 {[%clk 0:02:51]}  Kh8 {[%clk 0:02:32]} 19. a4 {[%clk 0:02:49]}  Bd8 {[%clk 0:02:21]} 20. a5 {[%clk 0:02:48]}  bxa5 {[%clk 0:02:09]} 21. b5 {[%clk 0:02:47]}  Nc5 {[%clk 0:01:45]} 22. bxa6 {[%clk 0:02:34]}  Nxa6 {[%clk 0:01:43]} 23. Ndb5 {[%clk 0:02:22]}  d5 {[%clk 0:01:13]} 24. cxd5 {[%clk 0:02:12]}  exd5 {[%clk 0:00:54]} 25. exd5 {[%clk 0:02:03]}  Nxd5 {[%clk 0:00:45]} 26. Nxd5 {[%clk 0:01:28]}  Rxc2 {[%clk 0:00:45]} 27. Qxc2 {[%clk 0:01:28]}  Bxd5 {[%clk 0:00:45]} 28. Nc3 {[%clk 0:01:22]}  Nb4 {[%clk 0:00:40]} 29. Nxd5 {[%clk 0:01:19]}  Qe5 {[%clk 0:00:15]} 30. Nxb4 {[%clk 0:01:11]}  axb4 {[%clk 0:00:14]} 31. Bc4 {[%clk 0:01:07]}  Bc7 {[%clk 0:00:04]} 32. Bxf7 {[%clk 0:01:01]}  Re7 {[%clk 0:00:04]} 33. Bb3 {[%clk 0:00:59]}  Qf4 {[%clk 0:00:03]} 34. Qc4 {[%clk 0:00:56]}  Re8 {[%clk 0:00:02]} 35. Qxf4 {[%clk 0:00:55]}  Bxf4 {[%clk 0:00:02]} 36. Ba4 {[%clk 0:00:55]}  Rb8 {[%clk 0:00:01]} 37. g3 {[%clk 0:00:55]}  Bd6 {[%clk 0:00:01]} 38. f4 {[%clk 0:00:54]}  Bf8 {[%clk 0:00:02]} 39. Kg2 {[%clk 0:00:53]}  h5 {[%clk 0:00:02]} 40. h4 {[%clk 0:00:53]}  Kh7 {[%clk 0:00:02]} 41. Bc2+ {[%clk 0:00:53]}  Kh6 {[%clk 0:00:03]} 42. Be3 {[%clk 0:00:50]}  Rc8 {[%clk 0:00:03]} 43. Rb2 {[%clk 0:00:37]}  Rc3 {[%clk 0:00:04]} 44. Bd2 {[%clk 0:00:33]}  Rc4 {[%clk 0:00:04]} 45. f5+ {[%clk 0:00:31]}  Kh7 {[%clk 0:00:04]} 46. f6+ {[%clk 0:00:30]}  Kg8 {[%clk 0:00:05]} 1-0


[Site "https://www.chess.com"]

[Event "Titled Tuesday Blitz July 6 2021"]
[White "Gabrielian, Artur"]
[Black "Sokolovsky, Yahli"]
[WhiteFideId "4131002"]
[BlackFideId "2820242"]
[WhiteElo "2523"]
[BlackElo "1770"]
[Result "1-0"]
[Round "03"]
[TimeControl "180+1"]
[Date "2021.07.06"]
[WhiteClock "0:02:07"]
[BlackClock "0:00:09"]

1. e4 {[%clk 0:03:00]}  g6 {[%clk 0:02:51]} 2. d4 {[%clk 0:02:59]}  Bg7 {[%clk 0:02:52]} 3. Nc3 {[%clk 0:02:59]}  d6 {[%clk 0:02:52]} 4. Be3 {[%clk 0:02:59]}  a6 {[%clk 0:02:51]} 5. Qd2 {[%clk 0:02:58]}  b5 {[%clk 0:02:51]} 6. h4 {[%clk 0:02:58]}  h5 {[%clk 0:02:50]} 7. O-O-O {[%clk 0:02:57]}  Bb7 {[%clk 0:02:49]} 8. f3 {[%clk 0:02:58]}  Nd7 {[%clk 0:02:46]} 9. Nh3 {[%clk 0:02:58]}  Ngf6 {[%clk 0:02:37]} 10. Ng5 {[%clk 0:02:57]}  O-O {[%clk 0:02:32]} 11. g4 {[%clk 0:02:57]}  c5 {[%clk 0:02:24]} 12. dxc5 {[%clk 0:02:50]}  Nxc5 {[%clk 0:01:51]} 13. e5 {[%clk 0:02:46]}  Nxg4 {[%clk 0:01:51]} 14. fxg4 {[%clk 0:02:35]}  Bxh1 {[%clk 0:01:51]} 15. gxh5 {[%clk 0:02:35]}  gxh5 {[%clk 0:01:39]} 16. Qe2 {[%clk 0:02:34]}  Ne6 {[%clk 0:00:40]} 17. Qxh5 {[%clk 0:02:21]}  Nxg5 {[%clk 0:00:39]} 18. hxg5 {[%clk 0:02:21]}  Bc6 {[%clk 0:00:21]} 19. Bd3 {[%clk 0:02:18]}  Re8 {[%clk 0:00:21]} 20. Rf1 {[%clk 0:02:14]}  f6 {[%clk 0:00:20]} 21. e6 {[%clk 0:02:09]}  f5 {[%clk 0:00:10]} 22. Qf7+ {[%clk 0:02:07]}  Kh8 {[%clk 0:00:10]} 23. Bxf5 {[%clk 0:02:07]}  Rf8 {[%clk 0:00:09]} 24. Qh5+ {[%clk 0:02:07]} 1-0


[Site "https://www.chess.com"]